fUST/lending_fUST_20240915
["ID","MTS","AMOUNT","RATE_DAILY","PERIOD"]
[338180299,1726364487247,3200.0,0.00052054,30]
[338180300,1726364489426,150.0,0.00052054,30]
[338180301,1726364490732,2320.93478002,0.00052053,120]
[338180306,1726364774562,167.399676,0.00013699,2]
[338180310,1726364825224,-167.399676,0.00020187,2]
[338180311,1726364825247,-323.56393203,0.00020803,2]
[338180312,1726364841110,-2189.19341697,0.00020803,2]
[338180313,1726364841134,-157.0981915,0.00020845,2]
[338180314,1726364841157,-155.0,0.0002121,4]
[338180315,1726364841181,-449.57672143,0.00021699,2]
[338180317,1726365007553,-6000.0,0.0002,2]
[338180324,1726365038148,-163.336442,0.00020604,2]
[338180325,1726365038159,-75.07027857,0.00021699,2]
[338180326,1726365038169,-150.0,0.00021699,2]
[338180327,1726365038179,-1000.0,0.00021807,2]
[338180328,1726365038188,-1344.63578533,0.00021817,2]
[338180329,1726365038198,-566.26,0.00021897,3]
[338180330,1726365038207,-153.6786405,0.000219,2]
[338180331,1726365038218,-153.0,0.000219,2]
[338180332,1726365038229,-300.0,0.000219,9]
[338180333,1726365038240,-300.0,0.00021904,2]
[338180334,1726365038250,-300.0,0.00021905,2]
[338180335,1726365038261,-5147.94065014,0.00021905,2]
[338180336,1726365038270,-1101.60657042,0.00021906,3]
[338180337,1726365038280,-16793.588213,0.00021906,3]
[338180338,1726365038289,-553.98483959,0.00021906,2]
[338180339,1726365038299,-500.0,0.00021906,2]
[338180340,1726365038309,-500.0,0.00021906,2]
[338180341,1726365038318,-500.0,0.00021906,2]
[338180342,1726365038329,-500.0,0.00021906,2]
[338180343,1726365038339,-500.0,0.00021906,2]
[338180345,1726365038354,-500.0,0.00021906,2]
[338180346,1726365038364,-500.0,0.00021906,2]
[338180347,1726365038374,-500.0,0.00021906,2]
[338180348,1726365038386,-500.0,0.00021906,2]
[338180349,1726365038397,-500.0,0.00021906,2]
[338180350,1726365038407,-500.0,0.00021906,2]
[338180351,1726365038416,-500.0,0.00021906,2]
[338180352,1726365038427,-500.0,0.00021906,2]
[338180353,1726365038440,-500.0,0.00021906,2]
[338180354,1726365038453,-500.0,0.00021906,2]
[338180355,1726365038466,-500.0,0.00021906,2]
[338180356,1726365038477,-500.0,0.00021906,2]
[338180357,1726365038487,-500.0,0.00021906,2]
[338180358,1726365038497,-500.0,0.00021906,2]
[338180359,1726365038508,-500.0,0.00021906,2]
[338180360,1726365038518,-500.0,0.00021906,2]
[338180361,1726365038529,-500.0,0.00021906,2]
[338180362,1726365038540,-500.0,0.00021906,2]
[338180363,1726365038550,-500.0,0.00021906,2]
[338180364,1726365038562,-500.0,0.00021906,2]
[338180365,1726365038572,-500.0,0.00021906,2]
[338180366,1726365038581,-500.0,0.00021906,2]
[338180367,1726365038591,-500.0,0.00021906,2]
[338180368,1726365038601,-500.0,0.00021906,2]
[338180369,1726365038612,-500.0,0.00021906,2]
[338180370,1726365038624,-500.0,0.00021906,2]
[338180371,1726365038634,-500.0,0.00021906,2]
[338180372,1726365038644,-500.0,0.00021906,2]
[338180373,1726365038654,-500.0,0.00021906,2]
[338180374,1726365038663,-500.0,0.00021906,2]
[338180375,1726365038673,-500.0,0.00021906,2]
[338180376,1726365038684,-500.0,0.00021906,2]
[338180377,1726365038694,-500.0,0.00021906,2]
[338180378,1726365038703,-179.84779562,0.00021906,2]
[338180379,1726365038713,-500.0,0.00021906,2]
[338180380,1726365038723,-500.0,0.00021906,2]
[338180381,1726365038732,-500.0,0.00021906,2]
[338180382,1726365038742,-500.0,0.00021906,2]
[338180383,1726365038752,-500.0,0.00021906,2]
[338180384,1726365038761,-500.0,0.00021906,2]
[338180385,1726365038772,-500.0,0.00021906,2]
[338180386,1726365038781,-500.0,0.00021906,2]
[338180387,1726365038792,-500.0,0.00021906,2]
[338180388,1726365038803,-292.65372562,0.00021906,2]
[338180389,1726365038817,-207.34627438,0.00021906,2]
[338180390,1726365038827,-500.0,0.00021906,2]
[338180391,1726365038839,-647.13957661,0.00021906,2]
[338180392,1726365038850,-500.0,0.00021906,2]
[338180393,1726365038861,-500.0,0.00021906,2]
[338180394,1726365038872,-500.0,0.00021906,2]
[338180395,1726365038882,-500.0,0.00021906,2]
[338180396,1726365038893,-500.0,0.00021906,2]
[338180397,1726365038903,-500.0,0.00021906,2]
[338180398,1726365038912,-500.0,0.00021906,2]
[338180399,1726365038921,-500.0,0.00021906,2]
[338180400,1726365038932,-500.0,0.00021906,2]
[338180401,1726365038941,-500.0,0.00021906,2]
[338180402,1726365038951,-500.0,0.00021906,2]
[338180403,1726365038966,-500.0,0.00021906,2]
[338180404,1726365038977,-500.0,0.00021906,2]
[338180405,1726365038988,-524.42280217,0.00021906,2]
[338180406,1726365038998,-524.42280217,0.00021906,2]
[338180407,1726365039007,-524.42280217,0.00021906,2]
[338180408,1726365039017,-524.42280217,0.00021906,2]
[338180409,1726365039027,-524.42280217,0.00021906,2]
[338180410,1726365039037,-524.42280217,0.00021906,2]
[338180411,1726365039046,-524.42280217,0.00021906,2]
[338180412,1726365039055,-524.42280217,0.00021906,2]
[338180413,1726365039066,-524.42280217,0.00021906,2]
[338180414,1726365039077,-524.42280217,0.00021906,2]
[338180415,1726365039090,-524.42280217,0.00021906,2]
[338180416,1726365039102,-524.42280217,0.00021906,2]
[338180417,1726365039114,-524.42280217,0.00021906,2]
[338180418,1726365039124,-524.42280217,0.00021906,2]
[338180419,1726365039135,-524.42280217,0.00021906,2]
[338180420,1726365039147,-524.42280217,0.00021906,2]
[338180421,1726365039158,-524.42280217,0.00021906,2]
[338180422,1726365039168,-524.42280217,0.00021906,2]
[338180423,1726365039181,-524.42280217,0.00021906,2]
[338180424,1726365039192,-524.42280217,0.00021906,2]
[338180425,1726365039204,-524.42280217,0.00021906,2]
[338180426,1726365039215,-524.42280217,0.00021906,2]
[338180427,1726365039227,-524.42280217,0.00021906,2]
[338180428,1726365039238,-524.42280217,0.00021906,2]
[338180429,1726365039249,-524.42280217,0.00021906,2]
[338180430,1726365039260,-524.42280217,0.00021906,2]
[338180431,1726365039270,-35389.78569981,0.00021906,2]
[338180432,1726365039282,-180.13,0.00021906,2]
[338180433,1726365039292,-15422.4919859,0.00021907,3]
[338180434,1726365039304,-55011.76818251,0.00021907,3]
[338180435,1726365039383,-15629.72853188,0.00021907,3]
[338180441,1726365040157,-317.79355,0.00021907,3]
[338180442,1726365040169,-3238.4541474,0.00021907,3]
[338180443,1726365040771,-34312.14391805,0.00021907,3]
[338180444,1726365040787,-39038.75847851,0.00021907,3]
[338180445,1726365040799,-501.98208771,0.00021907,3]
[338180477,1726365046160,-267.23675904,0.00021906,2]
[338180478,1726365046171,-232.76324096,0.00021906,2]
[338180479,1726365046181,-50.52195903,0.00021906,2]
[338180483,1726365198600,-3000.0,0.00016,2]
[338180484,1726365200257,-3000.0,0.0001601,2]
[338180485,1726365202255,-3000.0,0.0001602,2]
[338180487,1726365203571,-3000.0,0.0001603,2]
[338180488,1726365204365,-3000.0,0.0001604,2]
[338180489,1726365205417,-3000.0,0.0001605,2]
[338180490,1726365206277,-3000.0,0.0001606,2]
[338180491,1726365206780,-3000.0,0.0001607,2]
[338180492,1726365208124,-3000.0,0.0001608,2]
[338180493,1726365210157,-3000.0,0.0001609,2]
[338180498,1726365327761,236.766305,0.00013699,2]
[338180505,1726365590934,190.62,0.00010959,2]
[338180506,1726365601562,349.46,0.00010959,2]
[338180507,1726365612121,291.22,0.00010959,2]
[338180508,1726365617093,500.0,0.0001,2]
[338180509,1726365617496,500.0,0.0001,2]
[338180510,1726365617891,500.0,0.0001,2]
[338180511,1726365618277,500.0,0.0001,2]
[338180512,1726365618653,500.0,0.0001,2]
[338180513,1726365619040,471.532717,0.0001,2]
[338180514,1726365622659,242.68,0.00010959,2]
[338180515,1726365633173,202.24,0.00010959,2]
[338180516,1726365643708,168.53,0.00010959,2]
[338180517,1726365651335,197.0377007,0.00025999,60]
[338180518,1726365654496,842.67,0.00010959,2]
[338180520,1726365783737,198249.9329431,0.00013,2]
[338180524,1726365893248,224.927989,0.00013699,2]
[338180526,1726366049145,-842.0794517,0.00014481,2]
[338180527,1726366049167,-347.4820905,0.00014546,2]
[338180528,1726366049188,-2830.437006,0.00014548,2]
[338180529,1726366049210,-2293.9291793,0.00014587,2]
[338180530,1726366049232,-167.867564,0.00014963,2]
[338180531,1726366049254,-250.0,0.00014972,2]
[338180532,1726366049277,-167.867564,0.00015028,2]
[338180533,1726366049299,-167.867564,0.00015093,2]
[338180534,1726366049319,-1628.326309,0.00015131,2]
[338180535,1726366049342,-167.867564,0.00015158,2]
[338180536,1726366049365,-167.867564,0.00015223,2]
[338180537,1726366049386,-167.867564,0.00015288,2]
[338180538,1726366049408,-167.867564,0.00015353,2]
[338180539,1726366049429,-167.867564,0.00015418,2]
[338180540,1726366049452,-167.867564,0.00015483,2]
[338180541,1726366049474,-300.0,0.00015541,2]
[338180542,1726366049495,-300.0,0.00015542,2]
[338180543,1726366049517,-167.867564,0.00015548,2]
[338180544,1726366049539,-167.867564,0.00015613,2]
[338180545,1726366049560,-167.867564,0.00015678,2]
[338180546,1726366049583,-167.867564,0.00015743,2]
[338180547,1726366049607,-6238.33926665,0.0001597,2]
[338180548,1726366049628,-3000.0,0.00016,2]
[338180549,1726366049649,-3000.0,0.0001601,2]
[338180550,1726366049669,-3000.0,0.0001602,2]
[338180551,1726366049691,-3000.0,0.0001603,2]
[338180552,1726366049716,-3000.0,0.0001604,2]
[338180553,1726366049738,-3000.0,0.0001605,2]
[338180554,1726366049759,-3000.0,0.0001606,2]
[338180555,1726366049782,-3000.0,0.0001607,2]
[338180556,1726366049804,-3000.0,0.0001608,2]
[338180557,1726366049825,-998.86370775,0.00016089,2]
[338180558,1726366049847,-3000.0,0.0001609,2]
[338180559,1726366049870,-3000.0,0.000161,2]
[338180560,1726366049891,-3000.0,0.0001611,2]
[338180561,1726366049913,-3000.0,0.0001612,2]
[338180562,1726366049936,-3000.0,0.0001613,2]
[338180563,1726366049957,-904.313,0.0001614,2]
[338180564,1726366049978,-3000.0,0.0001614,2]
[338180565,1726366049999,-3000.0,0.0001615,2]
[338180566,1726366050021,-3000.0,0.0001616,2]
[338180567,1726366050042,-3000.0,0.0001617,2]
[338180568,1726366050064,-3000.0,0.0001618,2]
[338180569,1726366050086,-3000.0,0.0001619,2]
[338180570,1726366050108,-3000.0,0.000162,2]
[338180571,1726366050129,-3000.0,0.0001621,2]
[338180572,1726366050151,-4832.828382,0.0001622,2]
[338180573,1726366050172,-420.0,0.00016999,2]
[338180574,1726366050193,-420.0,0.00017096,2]
[338180575,1726366050213,-853.36859174,0.000171,2]
[338180576,1726366050234,-6238.33926658,0.00017236,2]
[338180577,1726366050255,-1000.0,0.00018,2]
[338180578,1726366050276,-6238.33926658,0.00018502,2]
[338180579,1726366050299,-587.0,0.00018595,2]
[338180580,1726366050320,-1000.0005168,0.000188,2]
[338180581,1726366050341,-587.0,0.00018806,2]
[338180582,1726366050364,-1000.0,0.00019,2]
[338180583,1726366050385,-175.36348,0.00019178,2]
[338180584,1726366050407,-6238.33926658,0.00019768,2]
[338180585,1726366050428,-1000.00000001,0.000199,2]
[338180586,1726366050449,-192.28908446,0.0002,2]
[338180587,1726366050470,-2000.0,0.0002,2]
[338180588,1726366050491,-224.927989,0.00020187,2]
[338180589,1726366050513,-823.0,0.0002034,2]
[338180590,1726366050538,-1000.0,0.000205,2]
[338180591,1726366050563,-524.0,0.00020611,2]
[338180592,1726366050586,-150.586,0.00020611,2]
[338180593,1726366050614,-823.0,0.00020686,2]
[338180594,1726366050637,-600.0,0.00020786,3]
[338180595,1726366050659,-600.0,0.00020821,3]
[338180596,1726366050683,-283.733,0.00020885,2]
[338180597,1726366050707,-1000.0,0.00020981,2]
[338180598,1726366050730,-6238.33926658,0.00021033,2]
[338180599,1726366050755,-153.0,0.00021178,2]
[338180600,1726366050776,-153.0,0.00021178,2]
[338180601,1726366050797,-153.0,0.00021178,2]
[338180602,1726366050820,-165.33644969,0.000213,2]
[338180603,1726366050844,-583.88,0.0002135,3]
[338180604,1726366050876,-310.0,0.0002136,4]
[338180605,1726366050902,-41100.3930014,0.00021382,3]
[338180606,1726366050926,-150.112233,0.000214,5]
[338180607,1726366050951,-221.035496,0.000214,5]
[338180608,1726366050977,-1785.0,0.00021443,2]
[338180609,1726366051002,-150.112233,0.000215,4]
[338180610,1726366051025,-150.112233,0.000215,5]
[338180611,1726366051047,-165.33644968,0.00021542,2]
[338180612,1726366051072,-1713.74673988,0.00021599,2]
[338180613,1726366051093,-153.0,0.000216,2]
[338180614,1726366051117,-150.112233,0.000216,4]
[338180615,1726366051148,-150.112233,0.000216,3]
[338180616,1726366051171,-956.64752394,0.00021614,2]
[338180617,1726366051193,-150.147,0.00021699,2]
[338180618,1726366051216,-150.112233,0.000217,4]
[338180619,1726366051240,-150.112233,0.000217,4]
[338180620,1726366051262,-1506.36628838,0.0002174,2]
[338180621,1726366051283,-165.33644968,0.00021784,2]
[338180622,1726366051306,-150.112233,0.000218,5]
[338180623,1726366051328,-3000.0,0.000218,2]
[338180624,1726366051350,-300.0,0.000218,9]
[338180625,1726366051375,-3000.0,0.0002181,2]
[338180626,1726366051396,-639.15911301,0.00021817,2]
[338180627,1726366051420,-3000.0,0.0002182,2]
[338180628,1726366051447,-2830.437006,0.00021822,2]
[338180629,1726366051469,-3000.0,0.0002183,2]
[338180630,1726366051492,-500.0,0.00021836,2]
[338180631,1726366051514,-500.0,0.00021836,2]
[338180632,1726366051536,-500.0,0.00021836,2]
[338180633,1726366051558,-500.0,0.00021836,2]
[338180634,1726366051581,-500.0,0.00021836,2]
[338180635,1726366051608,-153.73926158,0.00021836,2]
[338180636,1726366051631,-526.3567182,0.00021836,2]
[338180637,1726366051653,-500.0,0.00021836,2]
[338180638,1726366051674,-500.0,0.00021836,2]
[338180639,1726366051698,-500.0,0.00021836,2]
[338180640,1726366051727,-500.0,0.00021836,2]
[338180641,1726366051752,-500.0,0.00021836,2]
[338180642,1726366051775,-500.0,0.00021836,2]
[338180643,1726366051800,-500.0,0.00021836,2]
[338180644,1726366051824,-500.0,0.00021836,2]
[338180645,1726366051848,-500.0,0.00021836,2]
[338180646,1726366051870,-247.82823752,0.00021836,2]
[338180647,1726366051892,-500.0,0.00021836,2]
[338180648,1726366051914,-524.59917763,0.00021836,2]
[338180649,1726366051937,-500.0,0.00021836,2]
[338180650,1726366051960,-500.0,0.00021836,2]
[338180651,1726366051983,-500.0,0.00021836,2]
[338180652,1726366052005,-500.0,0.00021836,2]
[338180653,1726366052027,-500.0,0.00021836,2]
[338180654,1726366052050,-500.0,0.00021836,2]
[338180655,1726366052076,-500.0,0.00021836,2]
[338180656,1726366052098,-209.23316857,0.00021836,2]
[338180657,1726366052122,-500.0,0.00021836,2]
[338180658,1726366052145,-500.0,0.00021836,2]
[338180659,1726366052166,-500.0,0.00021836,2]
[338180660,1726366052189,-500.0,0.00021836,2]
[338180661,1726366052212,-500.0,0.00021836,2]
[338180662,1726366052234,-500.0,0.00021836,2]
[338180663,1726366052258,-500.0,0.00021836,2]
[338180664,1726366052280,-500.0,0.00021836,2]
[338180665,1726366052302,-500.0,0.00021836,2]
[338180666,1726366052324,-500.0,0.00021836,2]
[338180667,1726366052346,-500.0,0.00021836,2]
[338180668,1726366052586,-500.0,0.00021836,2]
[338180669,1726366052613,-500.0,0.00021836,2]
[338180670,1726366052637,-500.0,0.00021836,2]
[338180671,1726366052659,-500.0,0.00021836,2]
[338180672,1726366052682,-500.0,0.00021836,2]
[338180673,1726366052709,-500.0,0.00021836,2]
[338180674,1726366052734,-500.0,0.00021836,2]
[338180675,1726366052758,-500.0,0.00021836,2]
[338180676,1726366052782,-500.0,0.00021836,2]
[338180677,1726366052810,-500.0,0.00021836,2]
[338180678,1726366052833,-500.0,0.00021836,2]
[338180679,1726366052855,-500.0,0.00021836,2]
[338180680,1726366052879,-500.0,0.00021836,2]
[338180681,1726366052902,-2174.12705522,0.00021836,2]
[338180682,1726366052925,-2174.12705522,0.00021836,2]
[338180683,1726366052948,-2174.12705522,0.00021836,2]
[338180684,1726366052971,-2174.12705522,0.00021836,2]
[338180685,1726366052993,-2174.12705522,0.00021836,2]
[338180686,1726366053016,-2174.12705522,0.00021836,2]
[338180687,1726366053041,-2174.12705522,0.00021836,2]
[338180688,1726366053064,-2174.12705522,0.00021836,2]
[338180689,1726366053087,-2174.12705522,0.00021836,2]
[338180690,1726366053110,-2174.12705522,0.00021836,2]
[338180691,1726366053133,-2174.12705522,0.00021836,2]
[338180692,1726366053158,-2174.12705522,0.00021836,2]
[338180693,1726366053181,-2174.12705522,0.00021836,2]
[338180694,1726366053204,-2174.12705522,0.00021836,2]
[338180695,1726366053228,-2174.12705522,0.00021836,2]
[338180696,1726366053251,-2174.12705522,0.00021836,2]
[338180697,1726366053275,-2174.12705522,0.00021836,2]
[338180698,1726366053297,-2174.12705522,0.00021836,2]
[338180699,1726366053327,-2174.12705522,0.00021836,2]
[338180700,1726366053351,-2174.12705522,0.00021836,2]
[338180701,1726366053376,-2174.12705522,0.00021836,2]
[338180702,1726366053401,-2174.12705522,0.00021836,2]
[338180703,1726366053425,-2174.12705522,0.00021836,2]
[338180704,1726366053451,-2174.12705522,0.00021836,2]
[338180705,1726366053477,-2174.12705522,0.00021836,2]
[338180706,1726366053507,-2174.12705522,0.00021836,2]
[338180707,1726366053530,-2174.12705522,0.00021836,2]
[338180708,1726366053554,-2174.12705522,0.00021836,2]
[338180709,1726366053577,-2174.12705522,0.00021836,2]
[338180710,1726366053600,-2174.12705522,0.00021836,2]
[338180711,1726366053625,-2174.12705522,0.00021836,2]
[338180712,1726366053648,-2174.12705522,0.00021836,2]
[338180713,1726366053672,-2174.12705522,0.00021836,2]
[338180714,1726366053698,-2174.12705522,0.00021836,2]
[338180715,1726366053722,-2174.12705522,0.00021836,2]
[338180716,1726366053748,-2174.12705522,0.00021836,2]
[338180717,1726366053772,-2174.12705522,0.00021836,2]
[338180718,1726366053799,-2174.12705522,0.00021836,2]
[338180719,1726366053822,-2174.12705522,0.00021836,2]
[338180720,1726366053851,-2174.12705522,0.00021836,2]
[338180721,1726366053880,-2174.12705522,0.00021836,2]
[338180722,1726366053906,-2174.12705522,0.00021836,2]
[338180723,1726366053931,-2174.12705522,0.00021836,2]
[338180724,1726366053957,-2174.1270552,0.00021836,2]
[338180725,1726366053981,-2174.1270552,0.00021836,2]
[338180726,1726366054007,-2174.1270552,0.00021836,2]
[338180727,1726366054032,-2174.1270552,0.00021836,2]
[338180728,1726366054056,-2174.1270552,0.00021836,2]
[338180729,1726366054079,-2174.1270552,0.00021836,2]
[338180730,1726366054104,-2174.1270552,0.00021836,2]
[338180731,1726366054130,-2174.1270552,0.00021836,2]
[338180732,1726366054155,-2174.12705516,0.00021836,2]
[338180733,1726366054177,-463.07930531,0.00021837,2]
[338180734,1726366054201,-500.0,0.00021837,2]
[338180735,1726366054224,-500.0,0.00021837,2]
[338180736,1726366054247,-500.0,0.00021837,2]
[338180737,1726366054271,-500.0,0.00021837,2]
[338180738,1726366054293,-257.94191278,0.00021837,2]
[338180739,1726366054317,-500.0,0.00021837,2]
[338180740,1726366054341,-500.0,0.00021837,2]
[338180741,1726366054366,-500.0,0.00021837,2]
[338180742,1726366054391,-500.0,0.00021837,2]
[338180743,1726366054414,-259.89140017,0.00021837,2]
[338180744,1726366054438,-500.0,0.00021837,2]
[338180745,1726366054462,-355.68765958,0.00021837,2]
[338180746,1726366054486,-500.0,0.00021837,2]
[338180747,1726366054509,-426.77435143,0.00021837,2]
[338180748,1726366054532,-500.0,0.00021837,2]
[338180749,1726366054555,-500.0,0.00021837,2]
[338180750,1726366054577,-500.0,0.00021837,2]
[338180751,1726366054599,-500.0,0.00021837,2]
[338180752,1726366054635,-500.0,0.00021837,2]
[338180753,1726366054658,-500.0,0.00021837,2]
[338180754,1726366054682,-500.0,0.00021837,2]
[338180755,1726366054707,-500.0,0.00021837,2]
[338180756,1726366054730,-174.15551371,0.00021837,2]
[338180757,1726366054754,-500.0,0.00021837,2]
[338180758,1726366054781,-500.0,0.00021837,2]
[338180759,1726366054804,-500.0,0.00021837,2]
[338180760,1726366054827,-500.0,0.00021837,2]
[338180761,1726366054849,-500.0,0.00021837,2]
[338180762,1726366054874,-500.0,0.00021837,2]
[338180763,1726366054896,-500.0,0.00021837,2]
[338180764,1726366054919,-590.0,0.00021837,2]
[338180765,1726366054941,-500.0,0.00021837,2]
[338180766,1726366054963,-463.0,0.00021837,2]
[338180767,1726366054986,-500.0,0.00021837,2]
[338180768,1726366055010,-8825.73958741,0.00021838,3]
[338180829,1726366240473,-358.33672388,0.0001805,2]
[338180830,1726366240483,-5037.4104041,0.00020812,2]
[338180831,1726366240494,-5000.0,0.00020812,2]
[338180832,1726366240506,-5000.0,0.00020812,2]
[338180833,1726366240516,-5000.0,0.00020812,2]
[338180834,1726366240528,-5000.0,0.00020812,2]
[338180835,1726366240538,-1000.0,0.00021282,2]
[338180836,1726366240548,-155.0,0.0002136,4]
[338180837,1726366240560,-2446.83734744,0.00021728,2]
[338180838,1726366240571,-300.0,0.00021827,2]
[338180839,1726366240580,-61760.54052258,0.00021828,3]
[338180840,1726366240594,-15447.63222142,0.00021828,3]
[338180841,1726366240605,-4086.14108978,0.00021828,3]
[338180842,1726366240616,-3000.0,0.0002184,2]
[338180843,1726366240627,-3000.0,0.0002185,2]
[338180844,1726366240637,-3000.0,0.0002186,2]
[338180845,1726366240648,-3000.0,0.0002187,2]
[338180846,1726366240658,-500.0,0.00021873,2]
[338180847,1726366240668,-500.0,0.00021873,2]
[338180848,1726366240679,-500.0,0.00021874,2]
[338180849,1726366240688,-224.95546418,0.00021874,2]
[338180850,1726366240698,-500.0,0.00021874,2]
[338180851,1726366240708,-500.0,0.00021874,2]
[338180852,1726366240719,-500.0,0.00021874,2]
[338180853,1726366240728,-500.0,0.00021874,2]
[338180854,1726366240740,-500.0,0.00021874,2]
[338180855,1726366240751,-500.0,0.00021874,2]
[338180856,1726366240762,-500.0,0.00021874,2]
[338180857,1726366240773,-500.0,0.00021874,2]
[338180858,1726366240785,-500.0,0.00021874,2]
[338180859,1726366240796,-500.0,0.00021874,2]
[338180860,1726366240807,-500.0,0.00021874,2]
[338180861,1726366240819,-500.0,0.00021874,2]
[338180862,1726366240830,-500.0,0.00021874,2]
[338180863,1726366240840,-526.38400399,0.00021874,2]
[338180864,1726366240850,-500.0,0.00021874,2]
[338180865,1726366240859,-500.0,0.00021874,2]
[338180866,1726366240870,-500.0,0.00021874,2]
[338180867,1726366240879,-500.0,0.00021874,2]
[338180868,1726366240889,-67.19348941,0.00021874,2]
[338180869,1726366240903,-432.80651059,0.00021874,2]
[338180870,1726366240913,-500.0,0.00021874,2]
[338180871,1726366240924,-500.0,0.00021874,2]
[338180872,1726366240934,-500.0,0.00021874,2]
[338180873,1726366240945,-500.0,0.00021874,2]
[338180874,1726366240955,-500.0,0.00021874,2]
[338180875,1726366240965,-3084.19256561,0.00021874,3]
[338180876,1726366241943,-74123.98017839,0.00021874,3]
[338180877,1726366241953,-4086.14108978,0.00021874,3]
[338180878,1726366241962,-77208.172744,0.00021876,3]
[338180879,1726366241972,-4086.14108978,0.00021876,3]
[338180880,1726366241981,-1817.15257095,0.00021877,3]
[338180881,1726366241994,-529.35836415,0.00021877,3]
[338180882,1726366242098,-36257.5754369,0.00021877,3]
[338180883,1726366242109,-2043.07054489,0.00021877,3]
[338180884,1726366242120,-2181.6734765,0.0002188,2]
[338180888,1726366246245,-818.3265235,0.0002188,2]
[338180889,1726366246255,-3000.0,0.0002189,2]
[338180890,1726366246264,-2000.0,0.00021895,2]
[338180891,1726366246274,-2000.0,0.00021895,2]
[338180892,1726366246283,-2000.0,0.00021895,2]
[338180893,1726366246292,-2000.0,0.00021895,2]
[338180894,1726366246302,-2000.0,0.00021895,2]
[338180895,1726366246311,-1453.74827576,0.00021895,2]
[338180896,1726366246321,-5285.01884492,0.000219,2]
[338180897,1726366246332,-150.112233,0.000219,3]
[338180898,1726366246342,-150.112233,0.000219,3]
[338180899,1726366246352,-150.112233,0.000219,2]
[338180900,1726366246362,-150.112233,0.000219,2]
[338180901,1726366246371,-500.0,0.000219,2]
[338180902,1726366246381,-150.112233,0.000219,5]
[338180903,1726366246390,-3000.0,0.000219,2]
[338180904,1726366246399,-530.55933895,0.00021906,2]
[338180905,1726366246408,-500.0,0.00021906,2]
[338180906,1726366246418,-271.9088596,0.00021906,2]
[338180907,1726366246427,-500.0,0.00021906,2]
[338180908,1726366246436,-500.0,0.00021906,2]
[338180909,1726366246446,-500.0,0.00021906,2]
[338180910,1726366246455,-348.74204601,0.00021906,2]
[338180911,1726366246466,-500.0,0.00021906,2]
[338180912,1726366246477,-500.0,0.00021906,2]
[338180913,1726366246488,-381.92398012,0.00021906,2]
[338180914,1726366246499,-500.0,0.00021906,2]
[338180915,1726366246510,-223.0813617,0.00021906,2]
[338180916,1726366246521,-500.0,0.00021906,2]
[338180917,1726366246532,-500.0,0.00021906,2]
[338180918,1726366246541,-500.0,0.00021906,2]
[338180919,1726366246550,-500.0,0.00021906,2]
[338180920,1726366246559,-500.0,0.00021906,2]
[338180921,1726366246569,-500.0,0.00021906,2]
[338180922,1726366246580,-500.0,0.00021906,2]
[338180923,1726366246589,-500.0,0.00021906,2]
[338180924,1726366246601,-500.0,0.00021906,2]
[338180925,1726366246611,-26559.9170836,0.00021907,3]
[338180926,1726366246622,-3000.0,0.0002191,2]
[338180927,1726366246632,-1000.0,0.00021916,2]
[338180928,1726366246642,-12775.69768453,0.00021917,5]
[338180929,1726366246652,-5416.88597625,0.00021917,5]
[338180930,1726366246662,-173.2790805,0.00021917,2]
[338180931,1726366246671,-500.0,0.00021917,2]